Cogmind - Beta 15 @@@ ROGUE MODE // 2025.09.01 @ 20:41:04 Player: Gumbus Result: Destroyed by S-10 Pest with Light Assault Rifle Performance ------------- Evolutions (0) 0 Regions Visited (1) 200 Robots Destroyed (9) 45 Value Destroyed (238) 238 Prototype IDs (0) 0 Alien Tech Used (0) 0 Bonus (0) 0 TOTAL SCORE: 483 Bonus ------- None Cogmind --------- Core Integrity 0/250 Matter 265/450 Energy 100/100 System Corruption 0% Temperature Cool (0) Movement Core (150) Ox2 Location -10/Materials Parts ------- > --- POWER (1) -------- (None) > --- PROPULSION (2) --- (None) > --- UTILITY (2) ------ Small Storage Unit Large Matter Pod > --- WEAPON (2) ------- (None) > --- INVENTORY (8) ---- Small Storage Unit Small Battery (100) Signal Interpreter Peak State ------------ > --- POWER ------------ Light Ion Engine > --- PROPULSION ------- Wheel Wheel > --- UTILITY ---------- Small Storage Unit Small Storage Unit > --- WEAPON ----------- EM Pulse Gun Light Assault Rifle > --- INVENTORY -------- Light Ion Engine EM Pulse Gun [Rating: 7] Favorites ----------- Power Light Ion Engine Engine Light Ion Engine Propulsion Wheel Wheel Wheel Utility Small Storage Unit Storage Small Storage Unit Weapon EM Pulse Gun Energy Gun EM Pulse Gun Ballistic Gun Light Assault Rifle Launcher Grenade Launcher Build | -11 -10 ------- Run | Yrd Mat Slots Evolved . | . . Power . | . . Propulsion . | . . Utility . | . . Weapon . | . . Parts Attached 13 | 7 6 Power 2 | 2 . Engine 2 | 2 . Core . | . . Reactor . | . . Propulsion 2 | 2 . Treads . | . . Leg . | . . Wheel 2 | 2 . Hover . | . . Flight . | . . Utility 4 | . 4 Device . | . . Storage 4 | . 4 Processor . | . . Hackware . | . . Protection . | . . Artifact . | . . Weapon 5 | 3 2 Energy Gun 3 | 2 1 Energy Cannon . | . . Ballistic Gun 1 | 1 . Ballistic Cannon . | . . Launcher 1 | . 1 Special Weapon . | . . Impact Weapon . | . . Slashing Weapon . | . . Piercing Weapon . | . . Special Melee Weapon . | . . Unidentified Prototypes . | . . Parts Lost 9 | . 9 Power 2 | . 2 Propulsion 2 | . 2 Utility . | . . Weapon 5 | . 5 Highest Loss Streak 7 | . 7 To Critical Strikes . | . . Average Backups 4 | 2 4 Power . | . . Propulsion . | 1 . Utility 1 | . 2 Weapon 1 | . 1 Tool/Special . | . . Unused Backups 4 | . 4 Power . | . . Propulsion 3 | . 3 Utility 1 | . 1 Weapon . | . . Tool/Special . | . . Average Slot Usage (%) 86 | . 86 Engine 13 | . 13 Wheel 19 | . 19 Storage 25 | . 25 Energy Gun 12 | . 12 Ballistic Gun 8 | . 8 Launcher 5 | . 5 Peak Build Rating 7 | 5 7 Average Rating 5 | 3 6 On Entrance 2 | . 5 Naked Turns . | . . Heaviest Build 16 | 6 16 Greatest Support 20 | 20 20 Greatest Overweight (x) 2 | . 2 Average Overweight (x) . | . . Largest Inventory Capacity 8 | 5 8 Average Capacity 6 | 5 7 Most Carried 7 | 5 7 Average Carried 4 | 2 5 Final Capacity 8 | 5 8 Final Carried 5 | 5 3 Class Distribution -------------------- 100% | Mutant Dominant Class ---------------- Mutant | -10/Materials Resources | -11 -10 ----------- Run | Yrd Mat Matter Collected 379 | 291 88 Remotely . | . . Salvage Created 268 | 77 191 Parts 13 | 3 10 Haulers Intercepted . | . . Recyclers Shooed . | . . Parts Field Recycled . | . . Retrieved Matter . | . . Parts Self-Destructed . | . . Prevented . | . . Kills | -11 -10 ------- Run | Yrd Mat Combat Hostiles Destroyed 6 | 1 5 Guns 5 | 1 4 AOE 1 | . 1 Classes Destroyed 3 | 2 1 Worker 1 | 1 . Builder 2 | . 2 Grunt 6 | 1 5 Best Kill Streak 4 | 1 4 Combat Bots Only 3 | 1 3 Max Kills in Single Turn 1 | 1 1 Gunslinging . | . . Exploded 1 | . 1 Melee . | . . Uniques/NPCs Destroyed . | . . Combat | -11 -10 -------- Run | Yrd Mat Hostile Shots Fired 107 | 4 103 Missed 31 | 1 30 Hits 76 | 3 73 Projectile 76 | 3 73 Damage Taken 805 | 35 770 Core 258 | . 258 Absorbed by Shields . | . . Core Remaining (%) 100 | 100 . Volleys Fired 36 | 11 25 Largest 2 | 2 2 Hottest 70 | 60 70 Shots Fired 59 | 22 37 Gun 55 | 22 33 Cannon . | . . Launcher 4 | . 4 Special . | . . Kinetic 29 | 11 18 Thermal 5 | . 5 Explosive 4 | . 4 Electromagnetic 21 | 11 10 Robot Hit Streak 8 | 4 8 Robot Miss Streak 4 | 2 4 Penetration Max . | . . Secondary Targets 1 | . 1 Max Gunslinging Chain 1 | . 1 Shots Hit Robots 35 | 13 22 Core Hits 20 | 5 15 Critical Kills . | . . Critical Parts Destroyed . | . . Critical Strikes 3 | 1 2 Corrupt 3 | 1 2 Melee Attacks . | . . Impact . | . . Slashing . | . . Piercing . | . . Sneak Attacks . | . . Combat Hostiles . | . . Follow-up Attacks . | . . Damage Inflicted 710 | 134 576 Guns 352 | 134 218 Cannons . | . . Explosions 358 | . 358 Melee . | . . Ramming . | . . Kinetic 162 | 68 94 Thermal 97 | . 97 Explosive 305 | . 305 Electromagnetic 146 | 66 80 Impact . | . . Slashing . | . . Piercing . | . . Highest Corruption . | . . Average Corruption . | . . Corruption Purged . | . . Corruption Blocked . | . . Overload Shots . | . . Overflow Damage 4 | . 4 Projectiles . | . . Explosions 4 | . 4 Melee . | . . Knockbacks . | . . Impact . | . . Kinetic . | . . Secondary . | . . Self-Inflicted Damage 56 | . 56 Shots 2 | . 2 Rammed . | . . Targets Rammed . | . . Kicked . | . . Crushed . | . . Highest Temperature 76 | 58 76 Average Temperature 24 | 21 25 Received Heat Transfer 264 | 18 246 Siege Activations . | . . Martial Activations . | . . Shielding Activations . | . . Robots Disrupted . | . . Combat Hostiles . | . . Robots Corrupted . | . . Combat Hostiles . | . . Parts Fried . | . . Impact Corruptions . | . . Robots Melted . | . . Combat Hostiles . | . . Parts Melted . | . . Heat Transferred 100 | . 100 Parts Sabotaged . | . . Parts Stolen . | . . Parts Stripped . | . . Power Chain Reactions 1 | . 1 Alert | -11 -10 ------- Run | Yrd Mat Maximum Alert Level . | . . Low Security (%) 100 | 100 100 Level 1 . | . . Level 2 . | . . Level 3 . | . . Level 4 . | . . Level 5 . | . . High Security . | . . Max Security . | . . Peak Influence 102 | 20 102 Initial 6 | . 6 Average 29 | 4 42 Influence Increases 221 | 25 196 Destroy 0b10 Robot/C 120 | 20 100 Destroy 0b10 Robot/NC 15 | 5 10 Destroy Leader 10 | . 10 Successful Hack 14 | . 14 Disable Machine 15 | . 15 Destroy Structure 47 | . 47 Influence Decreases 209 | 15 194 Entered New Map 4 | . 4 Time Decay 115 | 15 100 Lost Part 90 | . 90 Squads Dispatched 1 | . 1 Investigation 1 | . 1 Extermination . | . . Reinforcement . | . . Assault . | . . Garrison . | . . Intercept . | . . Searches Triggered . | . . Construction Impeded . | . . Haulers Reinforced . | . . Active Scanning Responses . | . . Cargo Convoy Interrupts . | . . Stealth | -11 -10 --------- Run | Yrd Mat Distress Signals 1 | . 1 Communications Jammed . | . . Distress Signals . | . . Times Spotted 10 | 1 9 Peak Tracking Total 6 | 1 6 Tactical Retreats . | . . Traps | -11 -10 ------- Run | Yrd Mat Traps Triggered 1 | . 1 Indirectly . | . . Trap Hack Attempts . | . . Triggered . | . . Disarmed . | . . Reprogrammed . | . . Reused . | . . Traps Extracted . | . . Installed . | . . Triggered . | . . Machines | -11 -10 ---------- Run | Yrd Mat Machines Disabled 2 | . 2 Max in Single Turn 1 | . 1 Machines Repaired . | . . Machines Dismantled . | . . Machines Sabotaged . | . . Overloaded Fab Kills . | . . Hacking | -11 -10 --------- Run | Yrd Mat Machines Accessed 1 | . 1 Terminals 1 | . 1 Fabricators . | . . Repair Stations . | . . Recycling Units . | . . Scanalyzers . | . . Garrison Access . | . . Total Hacks 2 | . 2 Successful 1 | . 1 Failed 1 | . 1 Catastrophic . | . . Database Lockouts . | . . Manual . | . . Terminals 2 | . 2 Fabricators . | . . Repair Stations . | . . Recycling Units . | . . Scanalyzers . | . . Garrison Access . | . . Terminal Hacks 1 | . 1 Robot Analysis 1 | . 1 Fabricator Hacks . | . . Repair Station Hacks . | . . Recycling Unit Hacks . | . . Scanalyzer . | . . Garrison Access Hacks . | . . Unauthorized Hacks . | . . Terminals . | . . Fabricators . | . . Repair Stations . | . . Recycling Units . | . . Scanalyzers . | . . Garrison Access . | . . Data Cores Recovered . | . . Used . | . . Hacking Detections 1 | . 1 Full Trace Events . | . . Feedback Events . | . . Feedback Blocked . | . . Robot Schematics Acquired . | . . Robots Built . | . . Authchips . | . . Time . | . . Total Robot Build Rating . | . . Part Schematics Acquired . | . . Parts Built . | . . Authchips . | . . Time . | . . Total Part Build Rating . | . . Parts Repaired . | . . Time . | . . Parts Recycled . | . . Recycled Matter . | . . Retrieved Matter . | . . Retrieved Components . | . . Parts Scanalyzed . | . . Part Schematics Acquired . | . . Parts Damaged . | . . Bothacking | -11 -10 ------------ Run | Yrd Mat Used RIF Installer . | . . Robots Hacked . | . . Non-combat . | . . Combat . | . . Robot Hacks Applied . | . . Relay Couplers Released . | . . Fabnet Peak Effective % . | . . Robots Rewired . | . . Allies Hacked . | . . Hacks Repelled . | . . Allies | -11 -10 -------- Run | Yrd Mat Total Allies . | . . Largest Group . | . . Highest-Rated Group . | . . Highest-Rated Ally . | . . Total Orders . | . . Ally Attacks . | . . Total Damage . | . . Kills . | . . Allies Corrupted . | . . Allies Melted . | . . Intel | -11 -10 ------- Run | Yrd Mat Active Infowar (turns) . | . . Robot Analysis Total 1 | . 1 Derelict Logs Recovered . | . . Drone Launches . | . . Drone Recoveries . | . . Exploration | -11 -10 ------------- Run | Yrd Mat Turns Passed 342 | 110 232 Spaces Moved 260 | 89 171 Core 45 | 39 6 Treads . | . . Legs . | . . Wheels 215 | 50 165 Hover . | . . Flight . | . . Fastest Speed 50 | 50 80 Average Speed 80 | 66 87 Slowest Speed 150 | 80 150 Overloaded Moves . | . . Propulsion Burnouts . | . . Robots Hopped . | . . Potential Cave-ins . | . . Cave-ins Triggered . | . . Exploration Rate (%) 16 | 6 27 Regions Visited 1 Branch Regions . Pre-discovered Areas . | . . Known Exits Taken . | . . Unknown Exits Taken 1 | 1 . Scrap Searched . | . . Spaces Dug . | . . Terrain Destroyed 59 | . 59 Melee . | . . Projectile . | . . AOE 59 | . 59 Terrain Rammed . | . . Walls Destroyed . | . . Machines Disabled . | . . Actions | -11 -10 --------- Run | Yrd Mat Total 337 | 118 219 Wait . | . . Move 259 | 88 171 Hop . | . . Pick Up 18 | 10 8 Fast Attach . | . . Attach 12 | 6 6 Detach 1 | 1 . Swap 7 | 2 5 Drop 4 | . 4 Fire 36 | 11 25 Melee . | . . Ram . | . . Kick . | . . Crush . | . . Escape Stasis . | . . Rewire . | . . Trap . | . . Miscellaneous . | . . Route ------- -11/Scrapyard -10/Materials (discovered 2 exits: [*Min x2]) History --------- Turn | Location | Event 2 | -11/Scrapyard | Met Revision 17 72 | -11/Scrapyard | Discovered new exit (range 8) 111 | -11/Scrapyard | Entered Materials 166 | -10/Materials | Discovered new exit (range 15) 242 | -10/Materials | Discovered new exit (range 12) 310 | -10/Materials | Build established: Mutant 333 | -10/Materials | Core integrity fell below 50% 340 | -10/Materials | Core integrity fell below 20% 343 | -10/Materials | Destroyed by S-10 Pest with Light Assault Rifle Last Messages --------------- Switching to secondary target: G-34 Mercenary. K-01 Serf collects debris. EM Pulse Gun destroyed. G-34 Mercenary destroyed. K-01 Serf collects debris. Lgt. Ion Engine destroyed. K-01 Serf collects debris. Lgt. Assault Rifle destroyed. R-06 Scavenger collects Wheel. Machine disabled. K-01 Serf collects debris. EM Pulse Gun destroyed. K-01 Serf collects debris. R-06 Scavenger collects Seismic Detector. K-01 Serf collects debris. R-06 Scavenger collects Imp. Terrain Scanner. K-01 Serf collects debris. U-05 Engineer lays Concrete. K-01 Serf collects debris. [Achievement: First Step to Greatness] Map ----- +----------------------------------------------------+ | ?????????????????????????????????????????????????? | | ?????????????????????????????????????????????????? | | ?????????????????????????????????????????????????? | | ?????????????????????????????????????????????????? | | ?????????????????????????????????????????????????? | | ?????????????????????????????????????????????????? | | ?????????????????????????????????????????????????? | | ??????????????????????? ?????????????????????????? | | ???????????????????? ??????????????????????? | | ??????????????????? ??????????????????????? | | ??????????????????? ??????????????????????? | | ???????????????????? #?????????????????????? | | ????????????????????? +?????????????????????? | | ????????????????????? #?????????????????????? | | ?????????? ????????? ##????????????????????? | | ?????????# ????????? ????????????????????? | | ?????????# #?????????# ?????????????????????? | | ?????????# #?????????# ?????????????????????? | | ?????????# #?????????#s #?????????????????????? | | ?????????# #??????#### ##????????????????????? | | ?????????# #??????#" s% #????????????????????? | | ?????????# #??????#" #????????????????????? | | ?????????# #??????#||k sr #????????????????????? | | ######???# #??????#""k < #????????????????????? | | ###?# #??????#|| #????????????????????? | | #?# #??????#"" @ #????????????????????? | | #?# #??#####" k #????????????????????? | | ### #### # ###%! ##????????????????????? | | ## ## g%#?????????????????????? | | ## ! ! =#?????????????????????? | | + ! ! #?????????????????????? | | # #?????????????????????? | | # # ## ##+##?????????????????????? | | # # #### "" #### # ????????????????????? | | # ###??# "T #?? # ??????????????????? | | ######??? "" # ?????????????????? | | ??????? # # #???????????????? | | ??????! # # #???????????????? | | ?????#! ## #### ## # #???????????????? | | ?????#! ?# #??# ## # #???????????????? | | ?????##!??# #??# ### ##? #???????????????? | | ??????##??# #??# #?##???####+#####???????????????? | | ??????????# ???#+#?????????? ???????????????????? | | ??????????# ???????????????? ???????????????????? | | ??????????? ????????????????? ??????????????????? | | ###???????? ?????????????????????????????????????? | | #??????????????????????????????????????????????? | | " #??????????????????????????????????????????????? | | " #??????????????????????????????????????????????? | | " #??????????????????????????????????????????????? | +----------------------------------------------------+ Best States ------------- Heat Dissipation 25 Energy Generation 10 Energy Capacity 225 Matter Stores 300 Matter Capacity 450 Sight Range 16 Terrain Scan Density 10 Evasion (%) 50 Item Schematics ----------------- None Robot Schematics ------------------ None Fabricated ------------ Nothing Repaired ---------- Nothing Alien Tech Used ----------------- None Achievements -------------- First Step to Greatness Challenges ------------ None Game ------ Seed DiametricOpticalBasin Manual? 0 Play Time 00:21:59 Cumulative 0.3 hours Start 2025.09.01 @ 20:17:08 End 2025.09.01 @ 20:41:04 Sessions 1 Manual Loads 0 Difficulty Rogue Special Mode None Game No. 1 Rogue 1 Adventurer 0 Explorer 0 Win Type - Total 0 Types 0/0/0/0/0/0/0/0/0/0 Lore% 0 Gallery% 0 Achievement% 0 Wizard Run 0 Options --------- Layout 1 ASCII 0 Keyboard 0 Movement Mouse Keybinds 0 Fullscreen 1 Font 32/SmallcapsGlow Map View 50x35 Zoom Use 0% Tactical HUD 0 Map Filters NONE Filters NONE Steam 1 RUN: e03f837d-a671-4550-98af-12db18b3683f